{"text_format":"1","workbook":"xlsx","n_sheets":3,"sheets":["Instrucciones","Reformulación Presupuesto C","Resumen Presupuesto"],"not_rendered":{"charts":0,"images":5,"macros":1,"external_links":1,"defined_names":8,"comments":1,"pivot_tables":0},"unopened":[],"bounds":{"document_bytes":16777216,"sheet_cells":100000,"rows_first":2000,"rows_last":500,"rows_between":2000,"halvings":0,"cell_chars":16384,"cell_head_chars":4096},"cells_cut":0,"cells_raw":0,"read":"whole","date_system":"1900"}

{"sheet":"Instrucciones","index":0,"n_rows":25,"n_cols":10,"rows_kept":25,"cut":false,"hidden":false,"merged":[[23,1,23,16],[24,1,24,16],[1,8,1,11],[2,2,2,17],[5,2,5,17],[3,9,3,10]]}
[]
[null,null,null,null,null,null,null,null,"Doc_básico3_presu_reformulado_C_INSTRUCCIONES"]
[null,null,"SUBVENCIONES DEL AYUNTAMIENTO DE BARCELONA POR EL FORTALECIMIENTO DE LA ECONOMÍA SOCIAL Y SOLIDARIA Y POR LA INTERCOOPERACIÓN EN LA ESTRATEGIA #ESSBCN2030 - FORTALEZCAMOS LA ESS 2023"]
[null,null,null,null,null,null,null,null,null,"FORTALECEMOS LA ESS 2023"]
[]
[null,null,"Aspectos relevantes relacionados con la reformulación"]
[]
[]
[]
[]
[null,"1. Rellenar la pestaña \"Reformulación Presupuesto\" con los datos económicos del proyecto:"]
[null,"1.1  Rellenar los cuadros DATOS BÁSICOS-PREVISIÓN DE GASTOS DEL PROYECTO SUBVENCIONABLE INICIAL, con los datos económicos de la propuesta inicial con subvención otorgada."]
[null,"1.2  Rellenar r los cuadros DATOS BÁSICOS-PREVISIÓN DE GASTOS DEL PROYECTO REFORMULADO, con los datos económicos de la propuesta de reformulación."]
[null,"2. Revisar y llenar la pestaña \"Resumen Presupuesto\" con los datos económicos del proyecto:"]
[null,"3. Imprimir las hojas de las 2 pestañas (Reformulación presupuesto y Resumen Presupuesto). En formato pdf."]
[]
[]
[]
[null,"Pulsa el icono para generar un documento PDF del libro"]
[]
[]
[]
[]
[null,"4. Si la solicitud se presentó por vía telemática, es necesario que registre la documentación, telemáticamente, como trámite específico, dentro de la convocatoria específica como anexión de documentos adicionales y utilice el número de trámite que el sistema de registro le dio en el momento de la presentación de la solicitud de la subvención."]
[null,"5. En caso de que registre la documentación telemáticamente, como instancia genérica, mediante certificado digital, le recomendamos que avise a la dirección de correo electrónico subvencions_ec_solidaria@bcn.cat,para poder realizar un seguimiento, así como también en los casos que presente la documentación a través de una Oficina de Atención Ciudadana del Ayuntamiento, si no ha podido obtener el certificado digital (los requisitos para obtenerlo los encontrará en la Oficina Virtual de Trámites de la Sede Electrónica:https://seuelectronica.ajuntament.barcelona.cat/oficinavirtual/)."]

{"sheet":"Reformulación Presupuesto C","index":1,"n_rows":85,"n_cols":9,"rows_kept":85,"cut":false,"hidden":false,"merged":[[53,0,53,3],[82,0,82,3],[75,0,75,3],[76,0,76,3],[77,0,77,3],[78,0,78,3],[79,0,79,3],[84,0,84,3],[80,0,80,3],[81,0,81,3],[1,1,1,8],[18,0,18,3],[10,6,10,7],[18,6,18,8],[6,2,6,5],[3,0,4,8],[72,0,72,3],[73,0,73,3],[74,0,74,3],[20,0,20,3],[83,0,83,3],[21,0,21,3],[33,0,33,3]]}
[]
[null,"Reformulación presupuesto Modalidad C"]
[]
["SUBVENCIONES DEL AYUNTAMIENTO DE BARCELONA POR EL FORTALECIMIENTO DE LA ECONOMÍA SOCIAL Y SOLIDARIA Y POR LA INTERCOOPERACIÓN EN LA ESTRATEGIA #ESSBCN2030 - FORTALEZCAMOS LA ESS 2023"]
[]
[]
[]
["DATOS BASICOS"]
["Nombre de la persona jurídica",null,{"$f":"+IF(H9>Dadesbasiques[[#This Row],[Columna1]],\"ALERTA: La quantia de la subvenció atorgada no pot superar el 80% de la despesa total del projecte a subvencionar\", \" \")","v":" "},null,null,"  "]
["NIF de la persona jurídica",null,{"$f":"+IF(H10>Dadesbasiques[[#This Row],[Columna1]],\"ALERTA: La quantia de la subvenció atorgada no pot superar el 80% de la despesa total del projecte a subvencionar\", \" \")","v":" "}]
["Título del proyecto subvencionable",null,{"$f":"+IF(H11>Dadesbasiques[[#This Row],[Columna1]],\"ALERTA: La quantia de la subvenció atorgada no pot superar el 80% de la despesa total del projecte a subvencionar\", \" \")","v":" "},null,null,null,"DATOS BASICOS REFORMULADO"]
["Importe total del proyecto subvencionable",null,null,null,null,null,"Importe total del proyecto REFORMULADO"]
["Importe imputable a la subvención municipal",null,null,null,null,null,"Importe imputable a la subvención municipal"]
["Importe de la aportación / Cofinanciación de la organización",{"$f":"+B12-B13","v":0},null,null,null,null,"Importe de la aportación / Cofinanciación de la organización",{"$f":"H12-H13","v":0}]
["% del importe solicitado respecto del total del proyecto subvencionable",{"$f":"B13/B12","v":{"$error":"#DIV/0!"}},null,null,null,null,"% del importe solicitado respecto del total del proyecto REFORMULADO",{"$f":"H13/H12","v":{"$error":"#DIV/0!"}},{"$f":"+IF(H15>Dadesbasiques[[#This Row],[Columna1]],\"*Este porcentaje debe ser igual o menor al porcentaje subvencionado inicialmente.\",\" \")","v":{"$error":"#DIV/0!"}}]
["Data inici del projecte subvencionat (dd/mm/aaaa)",null,{"$f":"+IF(H16>Dadesbasiques[[#This Row],[Columna1]],\"ALERTA: La quantia de la subvenció atorgada no pot superar el 80% de la despesa total del projecte a subvencionar\", \" \")","v":" "}]
["Data fi del projecte subvencionat (dd/mm/aaaa)",null,{"$f":"+IF(H17>Dadesbasiques[[#This Row],[Columna1]],\"ALERTA: La quantia de la subvenció atorgada no pot superar el 80% de la despesa total del projecte a subvencionar\", \" \")","v":" "}]
[]
["PREVISIÓ DE DESPESES DEL PROJECTE SUBVENCIONABLE INICIAL",null,null,null,null,null,"PREVISIÓ DE DESPESES DEL PROJECTE REFORMULAT"]
[]
["PREVISIÓN DE GASTOS DEL PROYECTO SUBVENCIONABLE POR EL ÁMBITO C: SECTORES ESTRATÉGICOS: Cooperativismo de Vivienda en cesión de uso"]
["Actividades A) La fase de redacción de Proyecto de Obras de nueva construcción o rehabilitación integral o la fase de dirección de las obras por parte de Arquitecto y Arquitecto Técnico, en un 80% de la subvención otorgada."]
["PARTIDAS","Importe imputable a la subvención municipal","Importe de la aportación / Cofinanciación de la organización","Importe total del proyecto",null,null,"Importe imputable a la subvención municipal","Importe de la aportación / Cofinanciación de la organización","Importe total del proyecto"]
["A.D1. Honorarios de arquitecto en la fase de proyecto y/o dirección.",{"$f":"SUM(B25:B27)","v":0},{"$f":"SUM(C25:C27)","v":0},{"$f":"SUM(DespesesProjecteAb115[[#This Row],[Importe imputable a la subvención municipal]],DespesesProjecteAb115[[#This Row],[Importe de la aportación / Cofinanciación de la organización]])","v":0},null,null,{"$f":"SUM(G25:G27)","v":0},{"$f":"SUM(H25:H27)","v":0},{"$f":"+G24+H24","v":0}]
[null,null,null,{"$f":"SUM(DespesesProjecteAb115[[#This Row],[Importe imputable a la subvención municipal]],DespesesProjecteAb115[[#This Row],[Importe de la aportación / Cofinanciación de la organización]])","v":0},null,null,null,null,{"$f":"+G25+H25","v":0}]
[null,null,null,{"$f":"SUM(DespesesProjecteAb115[[#This Row],[Importe imputable a la subvención municipal]],DespesesProjecteAb115[[#This Row],[Importe de la aportación / Cofinanciación de la organización]])","v":0},null,null,null,null,0]
[null,null,null,{"$f":"SUM(DespesesProjecteAb115[[#This Row],[Importe imputable a la subvención municipal]],DespesesProjecteAb115[[#This Row],[Importe de la aportación / Cofinanciación de la organización]])","v":0},null,null,null,null,0]
["A.D2. Honorarios de arquitecto técnico en la fase de dirección.",{"$f":"SUM(B29:B31)","v":0},{"$f":"SUM(C29:C31)","v":0},{"$f":"SUM(DespesesProjecteAb115[[#This Row],[Importe imputable a la subvención municipal]],DespesesProjecteAb115[[#This Row],[Importe de la aportación / Cofinanciación de la organización]])","v":0},null,null,{"$f":"SUM(G29:G31)","v":0},{"$f":"SUM(H29:H31)","v":0},{"$f":"+G28+H28","v":0}]
[null,null,null,{"$f":"SUM(DespesesProjecteAb115[[#This Row],[Importe imputable a la subvención municipal]],DespesesProjecteAb115[[#This Row],[Importe de la aportación / Cofinanciación de la organización]])","v":0},null,null,null,null,{"$f":"+G29+H29","v":0}]
[null,null,null,{"$f":"SUM(DespesesProjecteAb115[[#This Row],[Importe imputable a la subvención municipal]],DespesesProjecteAb115[[#This Row],[Importe de la aportación / Cofinanciación de la organización]])","v":0},null,null,null,null,0]
[null,null,null,{"$f":"SUM(DespesesProjecteAb115[[#This Row],[Importe imputable a la subvención municipal]],DespesesProjecteAb115[[#This Row],[Importe de la aportación / Cofinanciación de la organización]])","v":0},null,null,null,null,0]
["TOTAL DE GASTOS PREVISTOS Actividad A",{"$f":"+B28+B24","v":0},{"$f":"+C28+C24","v":0},{"$f":"+D28+D24","v":0},null,null,{"$f":"+G28+G24","v":0},{"$f":"+H28+H24","v":0},{"$f":"+I28+I24","v":0}]
[]
["Actividades B) La fase de redacción del Convenio para la prestación de servicios e instalaciones para los socios y vecinos en su caso, en un 10% de la subvención otorgada."]
["PARTIDAS","Importe imputable a la subvención municipal","Importe de la aportación / Cofinanciación de la organización","Importe total del proyecto",null,null,"Importe imputable a la subvención municipal","Importe de la aportación / Cofinanciación de la organización","Importe total del proyecto"]
["\nB.D1. Honorarios de arquitecto por definición de los espacios comunes para las actividades colaborativas siempre y cuando no estén totalmente definidos en el Proyecto Ejecutivo.\n",{"$f":"SUM(B37:B39)","v":0},{"$f":"SUM(C37:C39)","v":0},{"$f":"SUM(DespesesProjecteAb11517[[#This Row],[Importe imputable a la subvención municipal]],DespesesProjecteAb11517[[#This Row],[Importe de la aportación / Cofinanciación de la organización]])","v":0},null,null,{"$f":"SUM(G37:G39)","v":0},{"$f":"SUM(H37:H39)","v":0},{"$f":"+G36+H36","v":0}]
[null,null,null,{"$f":"SUM(DespesesProjecteAb11517[[#This Row],[Importe imputable a la subvención municipal]],DespesesProjecteAb11517[[#This Row],[Importe de la aportación / Cofinanciación de la organización]])","v":0},null,null,null,null,{"$f":"+G37+H37","v":0}]
[null,null,null,{"$f":"SUM(DespesesProjecteAb11517[[#This Row],[Importe imputable a la subvención municipal]],DespesesProjecteAb11517[[#This Row],[Importe de la aportación / Cofinanciación de la organización]])","v":0},null,null,null,null,0]
[null,null,null,{"$f":"SUM(DespesesProjecteAb11517[[#This Row],[Importe imputable a la subvención municipal]],DespesesProjecteAb11517[[#This Row],[Importe de la aportación / Cofinanciación de la organización]])","v":0},null,null,null,null,0]
["B.D2. Honorarios de técnico agrícola o jardinero por el proyecto de huerto y/o jardín comunitario. O honorarios de la gestora por el mismo concepto.",{"$f":"SUM(B41:B43)","v":0},{"$f":"SUM(C41:C43)","v":0},{"$f":"SUM(DespesesProjecteAb11517[[#This Row],[Importe imputable a la subvención municipal]],DespesesProjecteAb11517[[#This Row],[Importe de la aportación / Cofinanciación de la organización]])","v":0},null,null,{"$f":"SUM(G41:G43)","v":0},{"$f":"SUM(H41:H43)","v":0},{"$f":"+G40+H40","v":0}]
[null,null,null,{"$f":"SUM(DespesesProjecteAb11517[[#This Row],[Importe imputable a la subvención municipal]],DespesesProjecteAb11517[[#This Row],[Importe de la aportación / Cofinanciación de la organización]])","v":0},null,null,null,null,{"$f":"+G41+H41","v":0}]
[null,null,null,{"$f":"SUM(DespesesProjecteAb11517[[#This Row],[Importe imputable a la subvención municipal]],DespesesProjecteAb11517[[#This Row],[Importe de la aportación / Cofinanciación de la organización]])","v":0},null,null,null,null,0]
[null,null,null,{"$f":"SUM(DespesesProjecteAb11517[[#This Row],[Importe imputable a la subvención municipal]],DespesesProjecteAb11517[[#This Row],[Importe de la aportación / Cofinanciación de la organización]])","v":0},null,null,null,null,0]
["B.D3. Honorarios de economista para la cuenta de explotación de construcción y/o implementación y la de explotación. O honorarios de la gestora por el mismo concepto.",{"$f":"SUM(B45:B47)","v":0},{"$f":"SUM(C45:C47)","v":0},{"$f":"SUM(DespesesProjecteAb11517[[#This Row],[Importe imputable a la subvención municipal]],DespesesProjecteAb11517[[#This Row],[Importe de la aportación / Cofinanciación de la organización]])","v":0},null,null,{"$f":"SUM(G45:G47)","v":0},{"$f":"SUM(H45:H47)","v":0},{"$f":"+G44+H44","v":0}]
[null,null,null,{"$f":"SUM(DespesesProjecteAb11517[[#This Row],[Importe imputable a la subvención municipal]],DespesesProjecteAb11517[[#This Row],[Importe de la aportación / Cofinanciación de la organización]])","v":0},null,null,null,null,{"$f":"+G45+H45","v":0}]
[null,null,null,{"$f":"SUM(DespesesProjecteAb11517[[#This Row],[Importe imputable a la subvención municipal]],DespesesProjecteAb11517[[#This Row],[Importe de la aportación / Cofinanciación de la organización]])","v":0},null,null,null,null,0]
[null,null,null,{"$f":"SUM(DespesesProjecteAb11517[[#This Row],[Importe imputable a la subvención municipal]],DespesesProjecteAb11517[[#This Row],[Importe de la aportación / Cofinanciación de la organización]])","v":0},null,null,null,null,0]
["B.D4. Honorarios de ingeniero de organización o técnico especialista en organización y explotación de espacios e instalaciones comunes, servicios compartidos y aplicaciones informáticas para el uso de los socios y vecinos en su caso. O honorarios de la gestora por el mismo concepto.",{"$f":"SUM(B49:B51)","v":0},{"$f":"SUM(C49:C51)","v":0},{"$f":"SUM(DespesesProjecteAb11517[[#This Row],[Importe imputable a la subvención municipal]],DespesesProjecteAb11517[[#This Row],[Importe de la aportación / Cofinanciación de la organización]])","v":0},null,null,{"$f":"SUM(G49:G51)","v":0},{"$f":"SUM(H49:H51)","v":0},{"$f":"+G48+H48","v":0}]
[null,null,null,{"$f":"SUM(DespesesProjecteAb11517[[#This Row],[Importe imputable a la subvención municipal]],DespesesProjecteAb11517[[#This Row],[Importe de la aportación / Cofinanciación de la organización]])","v":0},null,null,null,null,{"$f":"+G49+H49","v":0}]
[null,null,null,{"$f":"SUM(DespesesProjecteAb11517[[#This Row],[Importe imputable a la subvención municipal]],DespesesProjecteAb11517[[#This Row],[Importe de la aportación / Cofinanciación de la organización]])","v":0},null,null,null,null,0]
[null,null,null,{"$f":"SUM(DespesesProjecteAb11517[[#This Row],[Importe imputable a la subvención municipal]],DespesesProjecteAb11517[[#This Row],[Importe de la aportación / Cofinanciación de la organización]])","v":0},null,null,null,null,0]
["TOTAL DE GASTOS PREVISTOS Actividad B",{"$f":"B48+B44+B40+B36","v":0},{"$f":"C48+C44+C40+C36","v":0},{"$f":"D48+D44+D40+D36","v":0},null,null,{"$f":"G48+G44+G40+G36","v":0},{"$f":"H48+H44+H40+H36","v":0},{"$f":"I48+I44+I40+I36","v":0}]
[]
["Actividades C) Las tareas de fortalecimiento, cohesión, dinamización, resolución de conflictos, y participación de las personas socias tanto en el planteamiento del proyecto construcción, como en el proyecto colaborativo y en la propia dinámica de la cooperativa, en un 10 % de la subvención otorgada."]
["PARTIDAS","Importe imputable a la subvención municipal","Importe de la aportación / Cofinanciación de la organización","Importe total del proyecto",null,null,"Importe imputable a la subvención municipal","Importe de la aportación / Cofinanciación de la organización","Importe total del proyecto"]
["C.D1. Honorarios de personas o entidades relacionadas con la dinamización, mediación y participación de grupos, o de la propia gestora por estos conceptos.\n\n",{"$f":"SUM(B57:B59)","v":0},{"$f":"SUM(C57:C59)","v":0},{"$f":"SUM(DespesesProjecteAb1151718[[#This Row],[Importe imputable a la subvención municipal]],DespesesProjecteAb1151718[[#This Row],[Importe de la aportación / Cofinanciación de la organización]])","v":0},null,null,{"$f":"SUM(G57:G59)","v":0},{"$f":"SUM(H57:H59)","v":0},{"$f":"+G56+H56","v":0}]
[null,null,null,{"$f":"SUM(DespesesProjecteAb1151718[[#This Row],[Importe imputable a la subvención municipal]],DespesesProjecteAb1151718[[#This Row],[Importe de la aportación / Cofinanciación de la organización]])","v":0},null,null,null,null,{"$f":"+G57+H57","v":0}]
[null,null,null,{"$f":"SUM(DespesesProjecteAb1151718[[#This Row],[Importe imputable a la subvención municipal]],DespesesProjecteAb1151718[[#This Row],[Importe de la aportación / Cofinanciación de la organización]])","v":0},null,null,null,null,0]
[null,null,null,{"$f":"SUM(DespesesProjecteAb1151718[[#This Row],[Importe imputable a la subvención municipal]],DespesesProjecteAb1151718[[#This Row],[Importe de la aportación / Cofinanciación de la organización]])","v":0},null,null,null,null,0]
["TOTAL DE GASTOS PREVISTOS Actividad C",{"$f":"+B56","v":0},{"$f":"+C56","v":0},{"$f":"+D56","v":0},null,null,{"$f":"+G56","v":0},{"$f":"+H56","v":0},{"$f":"+I56","v":0}]
["D.D1Gastos del informe de auditoría (máximo 1.500€ subvención)",null,null,{"$f":"+[1]!DespesesProjecteAb1151718[[#This Row],[Import de l''aportació / Cofinançament de l''organització]]+[1]!DespesesProjecteAb1151718[[#This Row],[Import imputable a la subvenció municipal]]","v":0},null,null,null,null,{"$f":"+H61+G61","v":0}]
["TOTAL DE GASTOS PREVISTOS DEL PROYECTO SUBVENCIONABLE (A+B+C)  ",{"$f":"B31+B51+B59+B61","v":0},{"$f":"C31+C51+C59+C61","v":0},{"$f":"D31+D51+D59+D61","v":0},null,null,{"$f":"G31+G51+G59+G61","v":0},{"$f":"H31+H51+H59+H61","v":0},{"$f":"I31+I51+I59+I61","v":0}]
[]
[]
[]
[]
[]
[]
[]
[]
[]
[]
["Ámbito C SECTORES ESTRATÉGICOS: Cooperativismo de Vivienda en cesión de uso"]
["1. El importe de la subvención siempre será máximo del 80% de los gastos mencionados dado que el 20% debe ser sufragado por la cooperativa."]
["2. El importe máximo de subvención para esta modalidad C. SECTORES ESTRATÉGICOS: Cooperativismo de vivienda en cesión de uso es 50.000€.\n"]
["3. En caso de que la solicitud presentada sobrepase el importe máximo, se considerará como importe solicitado el máximo de lo establecido en la convocatoria."]
["4. Las actividades objeto de la subvención mediante los gastos mencionados en los puntos anteriores deben ser devengadas en los calendarios de ejecución y justificación que prevé la presente convocatoria de subvenciones y las facturas de gastos, su vencimiento y pago también."]
["5. Por las subvenciones otorgadas por importe igual o superior a 20.000 € es obligatorio un informe de auditoría para la justificación. El importe de este informe se considera gasto subvencionable y elegible, con un límite máximo de 1.500€."]
["6. Cuando se tenga que realizar gastos de más de 12.000 €, sin IVA, en el caso de prestaciones de servicios o entrega de bienes y por aquellos gastos de más de 30.000 €, sin IVA, en el caso de ejecución de obras, se tendrán que incorporar tres presupuestos solicitados y argumentar el motivo de la adjudicación en caso de no ser la propuesta más ventajosa económicamente."]
["7. La retribución de las personas contratadas en el marco del proyecto subvencionado no puede ser inferior al Salario Mínimo Interprofesional (SMI), ni a la estipulada en el correspondiente convenio o marco normativo de referencia (punto 7 de las bases 2023: requisitos de los proyectos )."]
["\n8. Los proyectos subvencionados deben fomentar actividades de interés público o social, las cuales deben ser gratuitas para las personas participantes o en ningún caso el precio debe suponer un obstáculo para su participación, buscando otras formas de acceso personas con dificultades económicas. En caso de que haya algún tipo de lucro, deberá revertir en las propias actividades subvencionadas."]
["9. El Ayuntamiento de Barcelona y sus entidades municipales en ningún caso subvencionarán el mismo proyecto, ejecutado durante el mismo período, por ningún otro procedimiento de concesión que no sea el regulado por las bases reguladoras."]
["10. El/la beneficiario/a no podrá alterar en ningún caso el destino de las subvenciones concedidas."]
["11. La organización designada como representante de la agrupación será plenamente responsable del proyecto ante el Ayuntamiento respecto al cumplimiento de las obligaciones establecidas en las bases reguladoras, sin perjuicio de la responsabilidad de las demás organizaciones socias de la agrupación, todo siéndole de aplicación los requisitos previstos en el punto 6.1 de las bases reguladoras."]
["12. En ningún caso podrán formar parte de la agrupación las organizaciones que hayan recibido otras subvenciones para la ejecución del propio proyecto de otras administraciones públicas."]

{"sheet":"Resumen Presupuesto","index":2,"n_rows":24,"n_cols":11,"rows_kept":24,"cut":false,"hidden":false,"merged":[[1,2,1,7],[5,0,6,1],[5,2,6,2],[5,3,6,3],[5,4,6,4],[5,6,6,7],[4,0,4,1],[24,1,24,11],[3,0,3,9],[17,0,18,0],[18,6,18,7],[5,8,6,8],[5,9,6,9],[23,6,23,9],[15,0,16,0],[7,0,9,0],[10,0,14,0]]}
[]
[null,null,"Resumen  presupuesto Modalidad C"]
[]
["SUBVENCIONES DEL AYUNTAMIENTO DE BARCELONA POR EL FORTALECIMIENTO DE LA ECONOMÍA SOCIAL Y SOLIDARIA Y POR LA INTERCOOPERACIÓN EN LA ESTRATEGIA #ESSBCN2030 - FORTALEZCAMOS LA ESS 2023"]
["GASTOS PREVISTOS",null,null,null,null,null,"INGRESSOS PREVISTOS",null,null,"MODALIDAD C"]
["Gastos directos\n(aquellas que se identifican directamente con el proyecto)",null,"Previsión inicial coste total","Previsión reformulada coste total","Importe imputado a la subvención otorgada",null,"Ingresos previstos",null,"Previsión inicial ingreso total","Previsión reformulada ingreso total"]
[]
["A",{"$f":"+'Reformulación Presupuesto C'!A24","v":"A.D1. Honorarios de arquitecto en la fase de proyecto y/o dirección."},{"$f":"+'Reformulación Presupuesto C'!D24","v":0},{"$f":"+'Reformulación Presupuesto C'!I24","v":0},{"$f":"+'Reformulación Presupuesto C'!G24","v":0},{"$f":"+IF(D8<0,\"No s'admeten valors negatius\",\"\")","v":""},"A.","Subvención municipal (importe solicitado a la instancia/otorgado)"]
[null,{"$f":"+'Reformulación Presupuesto C'!A28","v":"A.D2. Honorarios de arquitecto técnico en la fase de dirección."},{"$f":"+'Reformulación Presupuesto C'!D28","v":0},{"$f":"+'Reformulación Presupuesto C'!I28","v":0},{"$f":"+'Reformulación Presupuesto C'!G28","v":0},{"$f":"+IF(D9<0,\"No s'admeten valors negatius\",\"\")","v":""},"B.","Subvenciones de otras administraciones",null,null,{"$f":"+IF(J9<0,\"No s'admeten valors negatius\",\"\")","v":""}]
[null,null,{"$f":"SUM(C8:C9)","v":0},{"$f":"SUM(D8:D9)","v":0},{"$f":"SUM(E8:E9)","v":0},null,"C.","Subvenciones de entes privados"]
["B",{"$f":"+'Reformulación Presupuesto C'!A36","v":"\nB.D1. Honorarios de arquitecto por definición de los espacios comunes para las actividades colaborativas siempre y cuando no estén totalmente definidos en el Proyecto Ejecutivo.\n"},{"$f":"+'Reformulación Presupuesto C'!D36","v":0},{"$f":"+'Reformulación Presupuesto C'!I36","v":0},{"$f":"+'Reformulación Presupuesto C'!G36","v":0},null,"D.","Recursos propios de la organización aplicados al proyecto"]
[null,{"$f":"+'Reformulación Presupuesto C'!A40","v":"B.D2. Honorarios de técnico agrícola o jardinero por el proyecto de huerto y/o jardín comunitario. O honorarios de la gestora por el mismo concepto."},{"$f":"+'Reformulación Presupuesto C'!D40","v":0},{"$f":"+'Reformulación Presupuesto C'!I40","v":0},{"$f":"+'Reformulación Presupuesto C'!G40","v":0},null,"E.","Taquillaje"]
[null,{"$f":"+'Reformulación Presupuesto C'!A44","v":"B.D3. Honorarios de economista para la cuenta de explotación de construcción y/o implementación y la de explotación. O honorarios de la gestora por el mismo concepto."},{"$f":"+'Reformulación Presupuesto C'!D44","v":0},{"$f":"+'Reformulación Presupuesto C'!I44","v":0},{"$f":"+'Reformulación Presupuesto C'!G44","v":0},null,"F.","Cuotas de inscripción"]
[null,{"$f":"+'Reformulación Presupuesto C'!A48","v":"B.D4. Honorarios de ingeniero de organización o técnico especialista en organización y explotación de espacios e instalaciones comunes, servicios compartidos y aplicaciones informáticas para el uso de los socios y vecinos en su caso. O honorarios de la gestora por el mismo concepto."},{"$f":"+'Reformulación Presupuesto C'!D48","v":0},{"$f":"+'Reformulación Presupuesto C'!I48","v":0},{"$f":"+'Reformulación Presupuesto C'!G48","v":0},null,"G.","Venta de Productos"]
[null,null,{"$f":"SUM(C11:C14)","v":0},{"$f":"SUM(D11:D14)","v":0},{"$f":"SUM(E11:E14)","v":0},null,"H","Publicidad y/o Esponsorización"]
["C",{"$f":"+'Reformulación Presupuesto C'!A56","v":"C.D1. Honorarios de personas o entidades relacionadas con la dinamización, mediación y participación de grupos, o de la propia gestora por estos conceptos.\n\n"},{"$f":"+'Reformulación Presupuesto C'!D56","v":0},{"$f":"+'Reformulación Presupuesto C'!I56","v":0},{"$f":"+'Reformulación Presupuesto C'!G56","v":0},null,"I.","Otros ingresos"]
[null,null,{"$f":"SUM(C16:C16)","v":0},{"$f":"SUM(D16:D16)","v":0},{"$f":"SUM(E16:E16)","v":0},null,null,"Total Ingresos",{"$f":"SUM(I8:I16)","v":0},{"$f":"SUM(J8:J16)","v":0}]
["D","D.D1.-Gastos del informe de auditoría (máximo 1.500€ subvención)",{"$f":"+'Reformulación Presupuesto C'!D62","v":0},{"$f":"+'Reformulación Presupuesto C'!I62","v":0},{"$f":"+'Reformulación Presupuesto C'!G62","v":0}]
[null,null,{"$f":"SUM(C18:C18)","v":0},{"$f":"SUM(D18:D18)","v":0},{"$f":"SUM(E18:E18)","v":0},null,"Ingresos menos gastos",null,{"$f":"+I17-C20","v":0},{"$f":"+J17-D20","v":0}]
["C","Total Gastos",{"$f":"+C10+C15+C17","v":0},{"$f":"+D10+D15+D17","v":0},{"$f":"+E10+E15+E17","v":0}]
[null,null,null,null,null,null,null,null,"% subvencionado inicialmente",{"$f":"I8/C20","v":{"$error":"#DIV/0!"}},"*"]
[]
[null,null,null,null,null,null,null,null,"% subvencionado después de reformular",{"$f":"+J8/D20","v":{"$error":"#DIV/0!"}}]
[null,null,null,null,null,null,"*Este porcentaje debe ser igual o menor al porcentaje subvencionado inicialmente."]